bitfinex/quotes_SOLUSD_20220207
["timestamp","ask_amount","ask_price","bid_price","bid_amount"]
[1644251803328,39.06677108,121.9,121.77,24.3803]
[1644251803529,39.06677108,121.9,121.77,70.4593914]
[1644251804329,39.06677108,121.9,121.77,82.05157257]
[1644251804529,39.06677108,121.9,121.77,90.38290156]
[1644251804728,38.56677108,121.9,121.79,13.32091918]
[1644251804931,38.56677108,121.9,121.79,23.17091918]
[1644251806129,38.56677108,121.9,121.79,13.32091918]
[1644251806329,38.56677108,121.9,121.79,13.57091918]
[1644251806532,38.56677108,121.9,121.79,13.32091918]
[1644251807731,38.81677108,121.9,121.79,13.32091918]
[1644251810135,38.81677108,121.9,121.77,34.2303]
[1644251810136,68.0,121.89,121.77,7.49327101]
[1644251810336,56.0,121.88,121.75,2.33132899]
[1644251810536,56.0,121.88,121.72,2.33132899]
[1644251810740,2.14682857,121.87,121.72,2.33132899]
[1644251811036,36.81700807,121.86,121.73,37.07023072]
[1644251811239,36.81700807,121.86,121.73,38.80692621]
[1644251811640,37.06700807,121.86,121.74,1.73669549]
[1644251811836,37.06700807,121.86,121.75,22.57977986]
[1644251813038,37.06700807,121.86,121.72,4.06802448]
[1644251813237,37.06700807,121.86,121.72,1.73669549]
[1644251813637,36.81700807,121.86,121.72,1.73669549]
[1644251814039,36.81700807,121.86,121.73,36.65952178]
[1644251814540,36.81700807,121.86,121.73,38.38530237]
[1644251814739,36.81700807,121.86,121.73,38.63530237]
[1644251814939,37.06700807,121.86,121.73,38.38530237]
[1644251816341,37.06700807,121.86,121.73,1.72578059]
[1644251816541,37.06700807,121.86,121.71,12.18132899]
[1644251816744,37.06700807,121.86,121.71,9.85]
[1644251817042,37.06700807,121.86,121.71,17.57034655]
[1644251817466,37.06700807,121.86,121.71,61.90133351]
[1644251817663,37.06700807,121.86,121.71,17.57034655]
[1644251817866,37.06700807,121.86,121.71,15.85]
[1644251818064,37.06700807,121.86,121.71,9.85]
[1644251818263,2.14682857,121.85,121.69,47.1241]
[1644251818465,36.15182857,121.85,121.67,26.34872899]
[1644251818664,38.05600833,121.84,121.68,35.59945321]
[1644251819266,41.34728026,121.82,121.68,35.59945321]
[1644251819664,41.34728026,121.82,121.68,37.31979976]
[1644251820265,41.34728026,121.82,121.68,37.56979976]
[1644251820465,41.34728026,121.82,121.68,37.31979976]
[1644251822175,41.34728026,121.82,121.68,43.31979976]
[1644251822369,41.59728026,121.82,121.68,43.31979976]
[1644251822569,6.18045,121.81,121.68,43.31979976]
[1644251822770,40.28705452,121.8,121.68,37.31979976]
[1644251822970,6.18045,121.79,121.68,37.31979976]
[1644251823170,37.93752907,121.78,121.68,37.31979976]
[1644251823373,6.18045,121.77,121.68,37.31979976]
[1644251823576,40.71121432,121.76,121.68,37.31979976]
[1644251824072,40.71121432,121.76,121.68,1.72034655]
[1644251825072,40.71121432,121.76,121.69,14.73355227]
[1644251825874,6.18045,121.77,121.69,14.73355227]
[1644251826173,6.43045,121.77,121.69,14.73355227]
[1644251826977,39.52199226,121.76,121.69,14.73355227]
[1644251827578,39.52199226,121.76,121.66,1.66663705]
[1644251827776,39.52199226,121.76,121.65,9.85]
[1644251828179,39.52199226,121.76,121.66,18.16075792]
[1644251828577,39.52199226,121.76,121.65,47.84263696]
[1644251829077,39.52199226,121.76,121.65,9.85]
[1644251829282,39.52199226,121.76,121.61,12.18132899]
[1644251829479,39.52199226,121.76,121.61,9.85]
[1644251829679,2.14682857,121.75,121.61,9.85]
[1644251829880,2.14682857,121.75,121.6,22.8128]
[1644251830080,2.14682857,121.75,121.58,26.26755073]
[1644251830081,47.81971453,121.74,121.58,67.97959579]
[1644251830280,6.18045,121.73,121.58,67.97959579]
[1644251830478,38.88031285,121.72,121.59,18.21952595]
[1644251830678,38.88031285,121.72,121.6,15.60663653]
[1644251832085,39.13031285,121.72,121.57,23.6476]
[1644251832282,53.61474142,121.72,121.55,2.33132899]
[1644251832483,53.61474142,121.72,121.55,5.49276089]
[1644251832982,53.61474142,121.72,121.56,18.16675355]
[1644251833184,45.8308,121.71,121.57,38.76120579]
[1644251833385,38.47442106,121.7,121.57,38.76120579]
[1644251833587,50.81352106,121.7,121.57,38.76120579]
[1644251835187,50.81352106,121.7,121.57,44.76120579]
[1644251835386,38.47442106,121.7,121.57,44.76120579]
[1644251835588,38.47442106,121.7,121.57,56.25155643]
[1644251836387,38.47442106,121.7,121.57,54.61120579]
[1644251836788,38.47442106,121.7,121.57,15.85]
[1644251836992,38.47442106,121.7,121.54,47.4137]
[1644251836993,12.3401,121.69,121.54,47.4137]
[1644251837189,35.3816,121.69,121.54,0.024]
[1644251837389,37.52842857,121.69,121.54,0.024]
[1644251837793,6.18045,121.68,121.54,0.024]
[1644251837991,54.16228429,121.68,121.53,0.024]
[1644251838191,2.14682857,121.67,121.53,0.024]
[1644251838390,40.77357982,121.66,121.53,0.024]
[1644251839594,46.95402982,121.66,121.53,1.65999931]
[1644251839891,46.95402982,121.66,121.54,14.33015266]
[1644251840096,46.95402982,121.66,121.55,9.85]
[1644251840293,46.95402982,121.66,121.54,14.33015266]
[1644251840792,47.20402982,121.66,121.54,14.33015266]
[1644251842092,46.95402982,121.66,121.54,15.96615197]
[1644251842295,46.95402982,121.66,121.54,26.06615197]
[1644251843093,46.95402982,121.66,121.54,25.81615197]
[1644251843614,46.95402982,121.66,121.54,38.40415197]
[1644251843791,46.95402982,121.66,121.54,44.40415197]
[1644251844092,46.95402982,121.66,121.54,44.15415197]
[1644251844293,46.95402982,121.66,121.54,38.15415197]
[1644251844494,46.95402982,121.66,121.54,36.51815266]
[1644251844693,47.20402982,121.66,121.54,36.51815266]
[1644251845094,47.20402982,121.66,121.54,44.1334936]
[1644251845295,47.20402982,121.66,121.55,3.15266913]
[1644251845494,6.43045,121.66,121.56,35.38532927]
[1644251845695,6.43045,121.66,121.56,35.40932927]
[1644251845894,6.43045,121.66,121.57,9.85]
[1644251846095,6.18045,121.66,121.57,9.85]
[1644251846295,6.18045,121.66,121.57,9.874]
[1644251846595,45.79799902,121.65,121.58,24.26468131]
[1644251846797,6.18045,121.66,121.58,24.26468131]
[1644251847697,6.43045,121.66,121.58,24.26468131]
[1644251847895,42.62973087,121.66,121.58,24.26468131]
[1644251849798,42.62973087,121.66,121.57,0.024]
[1644251850003,42.62973087,121.66,121.56,5.49845395]
[1644251850803,42.62973087,121.66,121.56,3.16712496]
[1644251851002,42.62973087,121.66,121.55,24.15737108]
[1644251851201,42.62973087,121.66,121.56,3.16712496]
[1644251851602,54.97133087,121.66,121.55,2.35532899]
[1644251851901,54.97133087,121.66,121.55,2.33132899]
[1644251852507,54.97133087,121.66,121.56,46.95747837]
[1644251852707,42.62973087,121.66,121.56,46.95747837]
[1644251853106,42.62973087,121.66,121.55,2.33132899]
[1644251853404,42.62973087,121.66,121.54,5.52383033]
[1644251853905,42.62973087,121.66,121.54,2.35532899]
[1644251854105,54.97203087,121.66,121.55,3.16850134]
[1644251854305,54.97203087,121.66,121.54,0.024]
[1644251855112,54.97203087,121.66,121.54,2.35532899]
[1644251855314,2.14682857,121.65,121.52,2.33132899]
[1644251855511,2.14682857,121.65,121.53,0.024]
[1644251855512,12.3484,121.62,121.53,0.024]
[1644251855713,12.3484,121.62,121.51,0.024]
[1644251855910,12.3484,121.62,121.5,0.024]
[1644251856110,37.6157957,121.61,121.5,3.19108699]
[1644251856310,37.6157957,121.61,121.48,2.35532899]
[1644251856513,12.3501,121.58,121.48,2.35532899]
[1644251856712,22.2001,121.58,121.49,0.024]
[1644251856912,48.6791,121.57,121.47,0.23213448]
[1644251857213,48.6791,121.57,121.44,2.33132899]
[1644251857214,42.0,121.55,121.44,2.33132899]
[1644251857411,45.80703851,121.54,121.47,0.46426896]
[1644251857812,45.80703851,121.54,121.45,2.33132899]
[1644251858012,58.16203851,121.54,121.45,2.33132899]
[1644251858211,58.16203851,121.54,121.42,3.51344739]
[1644251858212,60.30886708,121.54,121.44,2.33132899]
[1644251858411,58.16203851,121.54,121.44,2.33132899]
[1644251858926,58.16203851,121.54,121.43,2.33132899]
[1644251859430,58.16203851,121.54,121.43,5.40900985]
[1644251859725,58.16203851,121.54,121.43,2.33132899]
[1644251860326,45.80703851,121.54,121.44,49.9753523]
[1644251860531,45.80703851,121.54,121.45,3.07768086]
[1644251860728,45.80703851,121.54,121.46,12.47025623]
[1644251861127,45.80703851,121.54,121.44,2.33132899]
[1644251861927,45.80703851,121.54,121.43,5.40246188]
[1644251862126,45.80703851,121.54,121.46,1.16108736]
[1644251862328,24.6194,121.57,121.44,45.12827091]
[1644251862927,12.3519,121.56,121.44,45.12827091]
[1644251863329,40.47306483,121.55,121.45,1.16108736]
[1644251864133,40.47306483,121.55,121.44,1.16108736]
[1644251864530,53.07596483,121.55,121.43,1.16108736]
[1644251865029,2.14682857,121.54,121.43,1.16108736]
[1644251865232,23.1561,121.54,121.43,1.16108736]
[1644251865729,12.3543,121.53,121.43,1.16108736]
[1644251865930,12.3543,121.53,121.42,1.16108736]
[1644251866130,37.7285244,121.52,121.42,1.16108736]
[1644251866730,50.0843244,121.52,121.42,1.16108736]
[1644251866931,50.0843244,121.52,121.41,1.16108736]
[1644251867131,52.23115297,121.52,121.41,1.16108736]
[1644251867333,52.23115297,121.52,121.4,1.16108736]
[1644251867334,75.12665297,121.52,121.4,1.16108736]
[1644251868131,75.12665297,121.52,121.39,1.16108736]
[1644251868531,75.12665297,121.52,121.38,1.16108736]
[1644251868832,75.12665297,121.52,121.38,38.19846413]
[1644251869033,75.12665297,121.52,121.38,1.16108736]
[1644251869432,9.85,121.51,121.38,1.16108736]
[1644251869634,12.3609,121.48,121.37,1.16108736]
[1644251869833,37.0905,121.48,121.36,1.16108736]
[1644251870033,34.39851088,121.47,121.37,49.75953063]
[1644251870236,34.39851088,121.47,121.38,1.16108736]
[1644251871237,34.39851088,121.47,121.37,1.16108736]
[1644251871436,34.39851088,121.47,121.38,1.16108736]
[1644251871836,34.39851088,121.47,121.38,17.29642128]
[1644251872035,34.39851088,121.47,121.38,18.45750864]
[1644251872236,34.39851088,121.47,121.38,17.29642128]
[1644251872641,34.39851088,121.47,121.38,18.45750864]
[1644251873240,12.3561,121.51,121.39,2.71517496]
[1644251873440,160.9362,121.57,121.39,15.09357496]
[1644251873639,185.5897,121.57,121.4,9.874]
[1644251873940,161.7472,121.57,121.41,1.16108736]
[1644251874139,41.53175601,121.56,121.42,49.49145969]
[1644251874439,41.53175601,121.56,121.43,0.024]
[1644251874942,53.88305601,121.56,121.43,0.024]
[1644251875143,56.02988458,121.56,121.43,0.024]
[1644251875444,53.88305601,121.56,121.43,0.024]
[1644251875642,54.13305601,121.56,121.43,0.024]
[1644251875843,66.12988458,121.56,121.42,0.024]
[1644251876043,12.357,121.52,121.42,0.024]
[1644251876243,12.357,121.52,121.4,0.024]
[1644251876643,46.32358898,121.51,121.4,46.23340517]
[1644251876945,23.9149,121.55,121.4,47.39449253]
[1644251877142,23.9149,121.55,121.42,1.16108736]
[1644251877344,24.6535,121.57,121.43,0.024]
[1644251877844,47.8208,121.57,121.43,0.024]
[1644251878046,59.37702833,121.56,121.43,26.27937437]
[1644251878243,47.02622833,121.56,121.45,46.20940517]
[1644251878443,47.02622833,121.56,121.41,41.1662]
[1644251878444,49.64,121.53,121.37,2.32251573]
[1644251878644,0.31603321,121.5,121.37,2.32251573]
[1644251878845,9.85,121.49,121.29,534.38061075]
[1644251879045,74.5648,121.48,121.29,540.44309075]
[1644251879245,22.2104,121.47,121.3,2.32764111]
[1644251879444,36.82242683,121.45,121.31,36.50041667]
[1644251879643,9.85,121.44,121.31,36.50041667]
[1644251879844,39.46682508,121.43,121.3,6.06198]
[1644251880044,9.85,121.42,121.3,6.06198]
[1644251880446,17.99682857,121.42,121.3,6.06198]
[1644251880846,12.3708,121.38,121.31,37.74242667]
[1644251881047,40.6577882,121.37,121.31,37.74242667]
[1644251881249,40.6577882,121.37,121.3,6.06198]
[1644251881648,2.14682857,121.36,121.3,6.06198]
[1644251881849,11.99682857,121.36,121.3,6.06198]
[1644251882048,15.85,121.36,121.3,6.06198]
[1644251882349,12.3714,121.35,121.31,47.65054158]
[1644251882747,18.3714,121.35,121.31,47.65054158]
[1644251882948,18.3714,121.35,121.3,6.06198]
[1644251883348,18.6214,121.35,121.3,6.06198]
[1644251884054,18.6214,121.35,121.3,46.63257726]
[1644251884251,54.25286371,121.35,121.3,46.63257726]
[1644251884448,54.25286371,121.35,121.3,6.06198]
[1644251884648,54.25286371,121.35,121.23,48.91555478]
[1644251884873,54.25286371,121.35,121.24,6.06498]
[1644251885548,9.85,121.34,121.24,6.06498]
[1644251885750,12.3776,121.31,121.24,6.06498]
[1644251886150,18.3776,121.31,121.24,6.06498]
[1644251886553,59.0353882,121.31,121.25,38.17039165]
[1644251886748,59.0353882,121.31,121.24,6.06498]
[1644251887148,68.8853882,121.31,121.24,6.06498]
[1644251887349,71.03221677,121.31,121.24,6.06498]
[1644251887551,59.0353882,121.31,121.24,6.06498]
[1644251887953,68.8853882,121.31,121.24,6.06498]
[1644251888150,69.1353882,121.31,121.24,6.06498]
[1644251888354,80.3833,121.29,121.2,0.6300155]
[1644251888551,9.85,121.28,121.23,0.58748844]
[1644251888952,6.0,121.28,121.23,0.58748844]
[1644251889551,22.2286,121.28,121.23,0.58748844]
[1644251889752,24.37542857,121.28,121.23,8.844e-05]
[1644251889952,108.26065679,121.28,121.23,8.844e-05]
[1644251890353,110.40748536,121.28,121.23,8.844e-05]
[1644251890552,110.65748536,121.28,121.23,8.844e-05]
[1644251891354,110.65748536,121.28,121.12,0.36903752]
[1644251891355,128.0,121.26,121.12,0.36903752]
[1644251891556,12.3881,121.22,121.12,0.36903752]
[1644251891753,9.85,121.21,121.12,0.36903752]
[1644251891954,11.99682857,121.21,121.12,0.36903752]
[1644251892154,43.35519512,121.2,121.12,0.36903752]
[1644251892375,9.85,121.19,121.12,0.36903752]
[1644251892554,12.39,121.17,121.12,0.36903752]
[1644251893155,18.39,121.17,121.12,0.36903752]
[1644251893457,9.85,121.16,121.1,0.04090272]
[1644251893660,12.3945,121.15,121.1,0.04090272]
[1644251893856,48.04990581,121.14,121.1,0.08180544]
[1644251894355,56.19673438,121.14,121.1,0.08180544]
[1644251894556,54.04990581,121.14,121.1,0.08180544]
[1644251894957,12.3984,121.13,121.1,0.08180544]
[1644251895159,12.3984,121.13,120.92,12.3806]
[1644251895160,0.08180544,121.1,120.92,12.3806]
[1644251895359,0.30336521,121.07,120.98,0.32722176]
[1644251895558,0.30336521,121.07,120.93,5.35553]
[1644251895559,133.02,121.06,120.93,5.35553]
[1644251895759,5.0,121.03,120.86,0.06348932]
[1644251896062,12.4152,120.99,120.86,0.06348932]
[1644251896359,48.04990581,120.98,120.86,0.06348932]
[1644251896760,9.85,120.98,120.86,0.06348932]
[1644251896961,23.5542,121.04,120.86,0.06348932]
[1644251897161,79.0402,121.1,120.86,12.47158932]
[1644251897359,9.85,121.06,120.86,12.47158932]
[1644251897560,9.85,121.06,120.86,18.47158932]
[1644251897760,43.35040153,121.05,120.87,37.84710145]
[1644251897961,30.3436364,121.03,120.87,37.84710145]
[1644251898163,12.409,120.99,120.87,37.84710145]
[1644251898564,18.409,120.99,120.87,37.84710145]
[1644251899163,28.259,120.99,120.87,37.84710145]
[1644251899563,28.259,120.99,120.87,43.84710145]
[1644251899763,18.409,120.99,120.87,43.84710145]
[1644251900163,18.659,120.99,120.87,43.84710145]
[1644251900564,6.0,120.99,120.87,56.25420145]
[1644251900764,6.0,120.99,120.87,56.50420145]
[1644251900965,6.0,121.01,120.87,66.35420145]
[1644251901169,6.0,121.05,120.87,66.35420145]
[1644251901668,53.86040969,121.06,120.87,66.35420145]
[1644251901866,53.86040969,121.06,120.87,66.10420145]
[1644251902065,66.26250969,121.06,120.87,66.10420145]
[1644251902266,25.83362824,121.04,120.87,66.10420145]
[1644251902665,31.83362824,121.04,120.87,66.10420145]
[1644251902867,31.83362824,121.04,120.87,56.25420145]
[1644251903066,36.91625886,121.02,120.87,56.25420145]
[1644251903265,46.76625886,121.02,120.87,50.25420145]
[1644251903466,52.76625886,121.02,120.87,50.25420145]
[1644251903870,15.85,121.02,120.87,50.25420145]
[1644251904067,28.2556,121.02,120.87,50.25420145]
[1644251904468,6.0,121.02,120.87,50.25420145]
[1644251904667,9.85,121.06,120.87,66.10420145]
[1644251904869,47.40411607,121.05,120.87,66.10420145]
[1644251905067,47.40411607,121.05,120.87,56.25420145]
[1644251905268,47.40411607,121.05,120.87,43.84710145]
[1644251905269,26.28992186,121.03,120.87,43.84710145]
[1644251905472,9.85,121.02,120.87,37.84710145]
[1644251905670,44.75037456,121.01,120.87,37.84710145]
[1644251905872,9.85,121.0,120.87,37.84710145]
[1644251906069,15.85,121.0,120.87,37.84710145]
[1644251906270,12.4114,120.99,120.87,37.84710145]
[1644251906472,6.0,121.0,120.87,37.84710145]
[1644251906871,6.0,121.0,120.87,39.67991283]
[1644251907072,9.85,121.02,120.87,37.84710145]
[1644251907491,12.4084,121.0,120.87,50.25440145]
[1644251907689,18.4084,121.0,120.87,50.25440145]
[1644251907888,18.6584,121.0,120.87,50.25440145]
[1644251908695,18.6584,121.0,120.87,50.50440145]
[1644251908896,12.4096,120.99,120.87,37.84710145]
[1644251909096,18.4096,120.99,120.87,37.84710145]
[1644251910195,18.4096,120.99,120.87,38.09710145]
[1644251910598,18.4096,120.99,120.87,38.12110145]
[1644251911498,33.01624773,120.98,120.87,37.87110145]
[1644251911700,50.60785694,120.98,120.87,37.87110145]
[1644251912104,50.85785694,120.98,120.87,37.87110145]
[1644251912297,18.6603,120.98,120.87,37.87110145]
[1644251912699,18.6603,120.98,120.87,38.12110145]
[1644251912901,18.4103,120.98,120.87,38.12110145]
[1644251914203,57.74801952,120.98,120.87,37.87110145]
[1644251915002,18.4103,120.98,120.87,37.87110145]
[1644251917905,33.58481169,120.97,120.87,37.87110145]
[1644251918106,18.4114,120.97,120.87,37.84710145]
[1644251918905,18.6614,120.97,120.87,37.84710145]
[1644251919506,18.4114,120.97,120.87,37.84710145]
[1644251920608,12.4114,120.97,120.87,37.84710145]
[1644251921207,12.6614,120.97,120.87,37.84710145]
[1644251922007,18.6614,120.97,120.87,37.84710145]
[1644251922407,6.25,120.97,120.87,37.84710145]
[1644251922608,0.25,120.97,120.87,37.84710145]
[1644251922809,6.0,120.97,120.87,37.84710145]
[1644251923207,6.0,120.97,120.87,38.09710145]
[1644251923407,18.4088,120.99,120.96,0.41081678]
[1644251923610,6.06439994,120.98,120.96,0.41081678]
[1644251924007,6.0,120.98,120.96,0.41081678]
[1644251924608,41.3545,121.04,120.97,3.03219997]
[1644251924808,41.16493908,121.03,120.96,0.41081678]
[1644251925009,40.0,121.02,120.9,38.29638761]
[1644251925210,17.99682857,121.02,120.9,38.29638761]
[1644251925609,2.14682857,121.01,120.9,38.29638761]
[1644251925819,41.3695,121.0,120.9,34.29638761]
[1644251926010,49.60693308,120.99,120.9,34.29638761]
[1644251926209,55.60693308,120.99,120.9,34.29638761]
[1644251926410,105.0,120.98,120.86,0.06348932]
[1644251926610,157.95355662,120.97,120.86,0.12697864]
[1644251926811,41.3897,120.94,120.86,0.12697864]
[1644251927013,22.267,120.93,120.86,0.12697864]
[1644251927211,28.267,120.93,120.86,0.12697864]
[1644251927512,44.07892428,120.92,120.86,0.12697864]
[1644251927714,48.28739112,120.9,120.86,0.12697864]
[1644251927914,89.68949112,120.9,120.86,0.12697864]
[1644251928613,41.4021,120.9,120.86,0.12697864]
[1644251928912,12.4207,120.89,120.86,0.12697864]
[1644251929715,18.4207,120.89,120.86,0.12697864]
[1644251929920,18.6707,120.89,120.86,0.12697864]
[1644251930915,41.13896101,120.88,120.86,0.12697864]
[1644251931115,6.0,120.88,120.86,0.12697864]
[1644251931315,12.4205,120.87,120.86,0.12697864]
[1644251931515,0.25,120.89,120.86,6.19137858]
[1644251931715,146.6226,120.97,120.86,6.19137858]
[1644251931915,87.2752,120.96,120.86,0.12697864]
[1644251932119,47.22345052,120.92,120.86,0.12697864]
[1644251932516,46.50049955,120.9,120.86,0.12697864]
[1644251932716,12.4204,120.91,120.86,0.12697864]
[1644251932916,6.0,120.9,120.86,0.12697864]
[1644251933116,18.4204,120.91,120.86,0.12697864]
[1644251934218,6.0,120.91,120.86,0.12697864]
[1644251934623,103.2576,120.97,120.86,0.12697864]
[1644251935018,42.82237462,120.96,120.86,0.12697864]
[1644251935221,48.82237462,120.96,120.86,0.12697864]
[1644251935620,42.82237462,120.96,120.86,0.12697864]
[1644251935919,12.4129,120.96,120.86,0.12697864]
[1644251936719,47.95608788,120.95,120.86,0.12697864]
[1644251936919,12.4134,120.95,120.86,0.12697864]
[1644251937620,18.4134,120.95,120.86,0.12697864]
[1644251937820,18.6634,120.95,120.86,0.12697864]
[1644251938822,18.4134,120.95,120.86,0.12697864]
[1644251939626,17.4134,120.95,120.86,0.12697864]
[1644251939823,141.7693,121.0,120.86,0.12697864]
[1644251939832,41.3722,121.0,120.86,0.12697864]
[1644251940022,493.99487383,121.08,120.87,9.85]
[1644251940023,9.85,121.07,120.87,9.85]
[1644251940224,9.85,121.07,120.87,16.1]
[1644251940426,9.85,121.07,120.87,17.70288633]
[1644251940624,72.5939,121.08,120.9,12.406]
[1644251940826,36.0046622,121.05,120.91,53.64026141]
[1644251941023,36.0046622,121.05,120.91,55.24314774]
[1644251941325,42.0046622,121.05,120.91,59.89026141]
[1644251941725,42.0046622,121.05,120.94,12.4019]
[1644251941924,42.0046622,121.05,120.94,44.86688115]
[1644251942928,54.4084622,121.05,120.94,44.86688115]
[1644251943526,54.4084622,121.05,120.94,45.11688115]
[1644251945129,54.4084622,121.05,120.94,44.86688115]
[1644251945531,54.6584622,121.05,120.94,0.024]
[1644251945730,12.4097,121.01,120.94,0.024]
[1644251945931,9.85,121.0,120.93,0.41229307]
[1644251946134,9.85,121.0,120.87,0.024]
[1644251946330,2.14682857,120.99,120.87,0.024]
[1644251946530,54.84651423,120.98,120.87,0.024]
[1644251946730,54.84651423,120.98,120.86,0.15097864]
[1644251946933,67.25881423,120.98,120.86,0.15097864]
[1644251947735,69.4056428,120.98,120.86,0.15097864]
[1644251948335,67.25881423,120.98,120.86,0.15097864]
[1644251949960,73.25881423,120.98,120.86,0.15097864]
[1644251951760,75.4056428,120.98,120.86,0.15097864]
[1644251952160,75.6556428,120.98,120.86,0.15097864]
[1644251952562,73.50881423,120.98,120.86,0.15097864]
[1644251952761,2.14682857,120.97,120.86,0.15097864]
[1644251952968,12.4181,120.94,120.86,0.15097864]
[1644251953164,60.19170967,120.94,120.86,0.12697864]
[1644251953363,12.4181,120.94,120.86,0.12697864]
[1644251953563,18.4181,120.94,120.86,0.12697864]
[1644251956268,24.59855,120.94,120.86,0.12697864]
[1644251956566,50.50771569,120.93,120.86,0.12697864]
[1644251956769,16.03045,120.92,120.86,0.12697864]
[1644251956968,35.91434197,120.91,120.86,0.12697864]
[1644251957169,6.18045,120.9,120.86,0.12697864]
[1644251957371,43.98079419,120.89,120.86,0.12697864]
[1644251957568,6.18045,120.88,120.86,0.12697864]
[1644251959975,39.00418904,120.87,120.86,0.12697864]
[1644251960175,6.05347136,120.86,120.83,0.37036486]
[1644251960377,6.05347136,120.86,120.83,0.62432214]
[1644251960777,6.05347136,120.86,120.74,164.3467]
[1644251960778,0.78125,120.77,120.55,104.67459052]
[1644251960976,216.2595,120.66,120.46,41.4805]
[1644251961181,5.0,120.45,120.43,0.024]
[1644251961378,5.0,120.45,120.15,14.14017937]
[1644251961583,17.285,120.44,120.22,3.49033844]
[1644251961781,17.285,120.44,120.23,6.11593]
[1644251961782,123.17,120.36,120.23,6.11593]
[1644251961978,123.17,120.34,120.23,3.63993]
[1644251962279,9.85,120.33,120.24,2.35089229]
[1644251962478,123.17,120.41,120.23,2.32689229]
[1644251962678,123.17,120.41,120.23,0.024]
[1644251962884,17.285,120.44,120.23,11.12862918]
[1644251962885,9.85,120.4,120.23,11.12862918]
[1644251963079,22.285,120.44,120.23,11.10462918]
[1644251963277,12.4716,120.41,120.24,0.024]
[1644251963477,12.4716,120.41,120.24,48.59146039]
[1644251963478,22.3216,120.41,120.24,48.59146039]
[1644251963679,22.285,120.44,120.24,48.59146039]
[1644251963680,17.285,120.44,120.25,12.93418474]
[1644251963879,17.285,120.44,120.26,36.96861435]
[1644251964179,9.85,120.43,120.26,50.77173883]
[1644251964381,18.18,120.43,120.28,34.30081517]
[1644251964579,18.18,120.43,120.29,0.024]
[1644251965381,18.18,120.43,120.3,34.32040513]
[1644251965382,141.35,120.43,120.3,34.32040513]
[1644251965579,15.4366,120.42,120.3,34.32040513]
[1644251965779,15.4366,120.42,120.31,0.024]
[1644251965978,9.85,120.41,120.3,0.024]
[1644251966381,0.31445209,120.38,120.23,0.382951]
[1644251966582,9.85,120.37,120.29,0.024]
[1644251966781,12.4784,120.35,120.24,0.024]
[1644251966982,9.85,120.34,120.24,0.024]
[1644251967183,12.822,120.34,120.24,0.024]
[1644251967400,21.152,120.34,120.24,0.024]
[1644251967699,18.18,120.34,120.23,0.382951]
[1644251967902,18.18,120.34,120.23,0.406951]
[1644251968100,12.4796,120.33,120.23,0.406951]
[1644251968300,9.85,120.32,120.23,0.382951]
[1644251968501,12.4796,120.33,120.23,0.382951]
[1644251968906,8.33,120.34,120.23,0.382951]
[1644251969605,9.85,120.33,120.23,0.406951]
[1644251970110,10.1,120.33,120.23,0.382951]
[1644251970309,10.1,120.33,120.19,43.55738904]
[1644251970508,13.054,120.33,120.19,43.55738904]
[1644251970906,12.4795,120.32,120.19,43.55738904]
[1644251971108,8.33,120.32,120.19,43.55738904]
[1644251971309,8.33,120.32,120.19,43.05738904]
[1644251971508,2.993,120.43,120.21,39.68101791]
[1644251971710,9.85,120.4,120.22,9.874]
[1644251972009,9.85,120.42,120.22,0.024]
[1644251972208,9.85,120.42,120.23,0.024]
[1644251972409,12.4708,120.4,120.22,0.024]
[1644251972610,9.85,120.39,120.22,0.024]
[1644251972810,10.1,120.39,120.22,0.024]
[1644251973611,19.35115256,120.43,120.22,9.874]
[1644251973612,2.993,120.43,120.22,9.874]
[1644251973816,9.85,120.43,120.23,39.72043247]
[1644251974012,9.85,120.43,120.24,9.874]
[1644251974211,9.85,120.43,120.25,38.83366204]
[1644251974412,9.85,120.43,120.26,0.024]
[1644251975012,12.4695,120.41,120.26,0.024]
[1644251976013,18.4695,120.41,120.27,43.3159078]
[1644251976512,18.4695,120.41,120.28,0.024]
[1644251977013,18.7195,120.41,120.28,0.024]
[1644251977215,10.16778809,120.4,120.28,0.024]
[1644251977414,12.477,120.37,120.28,0.024]
[1644251977613,22.327,120.37,120.27,43.3159078]
[1644251979615,12.4706,120.39,120.27,43.3159078]